[Event "DVM U20w 2019"]
[Site "Braunschweig"]
[Date "2019.12.28"]
[Round "4"]
[White "Muedder, Melanie"]
[Black "Köhler, Inken"]
[Result "1-0"]
[ECO "C00"]
[WhiteElo "1902"]
[BlackElo "1998"]
[Annotator "NA"]
[PlyCount "113"]
[EventDate "2019.12.27"]
[EventType "team-tourn"]
[EventRounds "7"]
[EventCountry "GER"]
[SourceTitle "playchess.com"]
[Source "ChessBase"]
[SourceQuality "1"]
[WhiteTeam "SG Solingen"]
[BlackTeam "TuRa Harksheide Norderstedt"]
[TimeControl "40/5400+30:1800+30"]

1. e4 {[%emt 0:00:00]} e6 {[%emt 0:00:00]} 2. d4 {[%emt 0:00:00]} d5 {[%emt 0:00:00]} 3. Bd3 {[%emt 0:00:00]} Nf6 {[%emt 0:01:50]} 4. e5 {[%emt 0:00:33]} Nfd7 {[%emt 0:00:07]} 5. Nf3 {[%emt 0:00:40]} Be7 {[%emt 0:00:58]} 6. O-O {[%emt 0:00:44]} O-O {[%emt 0:01:31]} 7. c3 {[%emt 0:01:44]} f6 {[%emt 0:02:40]} 8. exf6 {[%emt 0:01:00]} Nxf6 {[%emt 0:02:25]} 9. Re1 {[%emt 0:00:50]} c5 {[%emt 0:05:24]} 10. Bc2 {[%emt 0:07:20]} Nc6 {[%emt 0:03:28]} 11. a3 {[%emt 0:01:45]} Qc7 {[%emt 0:05:01]} 12. h3 {[%emt 0:04:18]} Bd6 {[%emt 0:05:03]} 13. Bg5 {[%emt 0:03:50]} Kh8 {[%emt 0:05:51]} 14. Qd3 {[%emt 0:15:55]} c4 {[%emt 0:12:07]} 15. Qe2 {[%emt 0:03:43]} Bd7 {[%emt 0:07:21]} 16. Nbd2 {[%emt 0:13:24]} Rae8 {[%emt 0:06:18]} 17. Ne5 {[%emt 0:07:16]} Re7 {[%emt 0:05:12]} 18. f4 {[%emt 0:08:57]} Be8 {[%emt 0:02:44]} 19. Rf1 {[%emt 0:05:58]} Qb6 {[%emt 0:07:50]} 20. Rab1 {[%emt 0:01:18]} Qc7 {[%emt 0:04:31]} 21. Qe1 {[%emt 0:05:21]} Kg8 {[%emt 0:08:23]} 22. Kh1 {[%emt 0:07:40]} b5 {[%emt 0:01:36]} 23. Bh4 {[%emt 0:05:16]} Ref7 {[%emt 0:04:55]} 24. Nxf7 {[%emt 0:01:35]} Qxf7 {[%emt 0:00:10]} 25. Nf3 {[%emt 0:01:32]} Bxf4 {[%emt 0:02:53]} 26. Ne5 {[%emt 0:00:34]} Nxe5 {[%emt 0:01:35]} 27. dxe5 {[%emt 0:00:09]} Nh5 {[%emt 0:01:48]} 28. g3 {[%emt 0:01:33]} g5 {[%emt 0:00:19]} 29. gxf4 {[%emt 0:00:45]} gxh4 {[%emt 0:00:05]} 30. Qxh4 {[%emt 0:00:32]} Kh8 {[%emt 0:00:17]} 31. f5 {[%emt 0:00:30]} Qg7 {[%emt 0:01:48]} 32. f6 {[%emt 0:00:34]} Qc7 {[%emt 0:00:46]} 33. Rbe1 {[%emt 0:00:37]} Rg8 {[%emt 0:00:26]} 34. Rf3 {[%emt 0:00:26]} Qb7 {[%emt 0:00:54]} 35. Kh2 {[%emt 0:00:38]} Qc7 {[%emt 0:00:36]} 36. Re2 {[%emt 0:00:30]} Qc5 {[%emt 0:00:32]} 37. Qd4 {[%emt 0:00:48]} Qc7 {[%emt 0:00:30]} 38. Rg2 {[%emt 0:00:04]} Rxg2+ {[%emt 0:00:15]} 39. Kxg2 {[%emt 0:00:06]} Qf7 {[%emt 0:00:33]} 40. Qg4 {[%emt 0:00:44]} Bc6 {[%emt 0:00:40]} 41. Qd4 {[%emt 0:05:34]} Be8 {[%emt 0:05:44]} 42. Kh2 {[%emt 0:03:38]} Qc7 {[%emt 0:01:10]} 43. Rf2 {[%emt 0:03:15]} Bf7 {[%emt 0:01:37]} 44. Bd1 {[%emt 0:01:13]} Be8 {[%emt 0:05:47]} 45. Qe3 {[%emt 0:04:19]} Bg6 {[%emt 0:01:47]} 46. Kg1 {[%emt 0:01:56]} Qf7 {[%emt 0:01:44]} 47. Qc5 {[%emt 0:04:09]} Ng3 {[%emt 0:05:30]} 48. Qc8+ {[%emt 0:03:47]} Qg8 {[%emt 0:00:16]} 49. Qc7 {[%emt 0:00:21]} Nf5 {[%emt 0:02:03]} 50. Bg4 {[%emt 0:01:47]} Bf7 {[%emt 0:04:50]} 51. Kh2 {[%emt 0:01:34]} Ne3 {[%emt 0:01:18]} 52. Qxa7 {[%emt 0:01:58]} Nxg4+ {[%emt 0:01:39]} 53. hxg4 {[%emt 0:00:08]} Qxg4 {[%emt 0:01:23]} 54. Qe3 {[%emt 0:00:17]} Qh5+ {[%emt 0:00:00]} 55. Kg1 {[%emt 0:00:34]} Qd1+ {[%emt 0:00:28]} 56. Kg2 {[%emt 0:00:21]} Qg4+ {[%emt 0:00:30]} 57. Qg3 {[%emt 0:00:33] normal} 1-0

[Event "DVM U20w 2019"]
[Site "Braunschweig"]
[Date "2019.12.28"]
[Round "4"]
[White "Schumann, Rabea"]
[Black "Wiesner, Paula"]
[Result "0-1"]
[ECO "A13"]
[WhiteElo "1873"]
[BlackElo "1955"]
[Annotator "NA"]
[PlyCount "72"]
[EventDate "2019.12.27"]
[EventType "team-tourn"]
[EventRounds "7"]
[EventCountry "GER"]
[SourceTitle "playchess.com"]
[Source "ChessBase"]
[SourceQuality "1"]
[WhiteTeam "SG Güstrow/Teterow"]
[BlackTeam "SC Borussia Lichtenberg"]
[TimeControl "40/5400+30:1800+30"]

1. c4 {[%emt 0:00:00]} e6 {[%emt 0:00:00]} 2. g3 {[%emt 0:00:00]} d5 {[%emt 0:00:00]} 3. Nf3 {[%emt 0:00:04]} dxc4 {[%emt 0:00:00]} 4. Qa4+ {[%emt 0:00:41]} c6 {[%emt 0:00:00]} 5. Qxc4 {[%emt 0:00:19]} b5 {[%emt 0:00:00]} 6. Qc2 {[%emt 0:01:01]} Bb7 {[%emt 0:00:14]} 7. Bg2 {[%emt 0:00:30]} Nf6 {[%emt 0:00:32]} 8. O-O {[%emt 0:01:33]} Be7 {[%emt 0:02:33]} 9. d4 {[%emt 0:05:26]} O-O {[%emt 0:02:11]} 10. Bd2 {[%emt 0:06:02]} a5 {[%emt 0:05:53]} 11. Nc3 {[%emt 0:04:04]} Qb6 {[%emt 0:02:37]} 12. Rac1 {[%emt 0:05:44]} Nbd7 {[%emt 0:03:06]} 13. e3 {[%emt 0:06:00]} Rac8 {[%emt 0:04:53]} 14. Qb1 {[%emt 0:05:09]} Rfd8 {[%emt 0:02:06]} 15. Rfd1 {[%emt 0:02:34]} c5 {[%emt 0:03:34]} 16. a4 {[%emt 0:08:25]} b4 {[%emt 0:06:35]} 17. Ne2 {[%emt 0:04:50]} Be4 {[%emt 0:08:06]} 18. Qa1 {[%emt 0:02:06]} Qb7 {[%emt 0:04:50]} 19. Ne1 {[%emt 0:02:07]} Bxg2 {[%emt 0:02:36]} 20. Nxg2 {[%emt 0:00:05]} Qf3 {[%emt 0:01:07]} 21. Nef4 {[%emt 0:06:39]} Ne4 {[%emt 0:04:45]} 22. Be1 {[%emt 0:01:41]} c4 {[%emt 0:05:30]} 23. Kf1 {[%emt 0:09:11]} Ndf6 {[%emt 0:06:34]} 24. Qb1 {[%emt 0:10:36]} Ng4 {[%emt 0:03:35]} 25. Qc2 {[%emt 0:01:49]} g5 {[%emt 0:07:25]} 26. Nh3 {[%emt 0:02:20]} Nxh2+ {[%emt 0:00:18]} 27. Kg1 {[%emt 0:00:05]} Ng4 {[%emt 0:00:35]} 28. Kh1 {[%emt 0:08:21]} h5 {[%emt 0:06:34]} 29. Rd2 {[%emt 0:03:08]} Nxd2 {[%emt 0:01:54]} 30. Qxd2 {[%emt 0:00:10]} Qe4 {[%emt 0:04:13]} 31. Qc2 {[%emt 0:01:43]} Qxc2 {[%emt 0:01:31]} 32. Rxc2 {[%emt 0:00:11]} e5 {[%emt 0:01:08]} 33. f3 {[%emt 0:01:59]} exd4 {[%emt 0:01:07]} 34. exd4 {[%emt 0:01:24]} Nh6 {[%emt 0:01:42]} 35. Bf2 {[%emt 0:00:17]} Nf5 {[%emt 0:00:32]} 36. Rd2 {[%emt 0:00:49]} c3 {[%emt 0:00:21] normal} 0-1

[Event "DVM U20w 2019"]
[Site "Braunschweig"]
[Date "2019.12.28"]
[Round "4"]
[White "Hartmann, Cora"]
[Black "Joers, Pia-Milena"]
[Result "1/2-1/2"]
[ECO "B19"]
[WhiteElo "1842"]
[BlackElo "1646"]
[Annotator "NA"]
[PlyCount "98"]
[EventDate "2019.12.27"]
[EventType "team-tourn"]
[EventRounds "7"]
[EventCountry "GER"]
[SourceTitle "playchess.com"]
[Source "ChessBase"]
[SourceQuality "1"]
[WhiteTeam "SC Borussia Lichtenberg"]
[BlackTeam "SG Güstrow/Teterow"]
[TimeControl "40/5400+30:1800+30"]

1. e4 {[%emt 0:00:00]} c6 {[%emt 0:00:00]} 2. d4 {[%emt 0:00:00]} d5 {[%emt 0:00:00]} 3. Nc3 {[%emt 0:00:00]} dxe4 {[%emt 0:00:00]} 4. Nxe4 {[%emt 0:00:00]} Bf5 {[%emt 0:00:00]} 5. Ng3 {[%emt 0:00:00]} Bg6 {[%emt 0:00:12]} 6. h4 {[%emt 0:00:06]} h6 {[%emt 0:00:07]} 7. Nf3 {[%emt 0:00:10]} Nd7 {[%emt 0:00:21]} 8. h5 {[%emt 0:00:07]} Bh7 {[%emt 0:00:06]} 9. Bd3 {[%emt 0:00:06]} Bxd3 {[%emt 0:00:10]} 10. Qxd3 {[%emt 0:00:05]} e6 {[%emt 0:00:29]} 11. Bf4 {[%emt 0:00:15]} Ngf6 {[%emt 0:00:25]} 12. O-O-O {[%emt 0:00:17]} Nd5 {[%emt 0:05:04]} 13. Bd2 {[%emt 0:02:59]} Qc7 {[%emt 0:00:52]} 14. Ne4 {[%emt 0:04:11]} O-O-O {[%emt 0:01:12]} 15. c4 {[%emt 0:03:58]} N5f6 {[%emt 0:04:56]} 16. Kb1 {[%emt 0:04:13]} Nxe4 {[%emt 0:01:00]} 17. Qxe4 {[%emt 0:00:02]} Nf6 {[%emt 0:00:57]} 18. Qc2 {[%emt 0:06:33]} c5 {[%emt 0:05:26]} 19. Bc3 {[%emt 0:11:01]} Be7 {[%emt 0:12:09]} 20. dxc5 {[%emt 0:17:04]} Qxc5 {[%emt 0:07:03]} 21. Ne5 {[%emt 0:03:04]} Rxd1+ {[%emt 0:01:06]} 22. Rxd1 {[%emt 0:00:20]} Rd8 {[%emt 0:17:56]} 23. Rxd8+ {[%emt 0:04:58]} Bxd8 {[%emt 0:01:47]} 24. Nxf7 {[%emt 0:04:23]} Qxh5 {[%emt 0:06:50]} 25. Nxd8 {[%emt 0:14:20]} Kxd8 {[%emt 0:00:33]} 26. Qd2+ {[%emt 0:01:01]} Kc8 {[%emt 0:00:33]} 27. f3 {[%emt 0:06:09]} e5 {[%emt 0:03:57]} 28. Qe2 {[%emt 0:02:03]} Qf5+ {[%emt 0:02:06]} 29. Kc1 {[%emt 0:01:38]} Nd7 {[%emt 0:01:17]} 30. g4 {[%emt 0:03:21]} Qf4+ {[%emt 0:01:05]} 31. Kc2 {[%emt 0:00:41]} g6 {[%emt 0:06:11]} 32. Bd2 {[%emt 0:04:03]} Qf8 {[%emt 0:00:09]} 33. Qe4 {[%emt 0:01:21]} g5 {[%emt 0:04:16]} 34. Bc3 {[%emt 0:01:25]} Qf6 {[%emt 0:01:01]} 35. b4 {[%emt 0:02:58]} Kc7 {[%emt 0:01:51]} 36. a4 {[%emt 0:02:14]} Qe6 {[%emt 0:03:54]} 37. Qd5 {[%emt 0:00:37]} Qg6+ {[%emt 0:01:53]} 38. Qd3 {[%emt 0:00:56]} Qc6 {[%emt 0:01:01]} 39. Kb3 {[%emt 0:00:57]} Qb6 {[%emt 0:03:17]} 40. Qd5 {[%emt 0:01:30]} Qe3 {[%emt 0:07:42]} 41. c5 {[%emt 0:05:07]} a5 {[%emt 0:02:42]} 42. Qd6+ {[%emt 0:03:10]} Kd8 {[%emt 0:04:10]} 43. Qd5 {[%emt 0:03:16]} axb4 {[%emt 0:00:37]} 44. Kxb4 {[%emt 0:00:10]} Qf4+ {[%emt 0:00:31]} 45. Kb5 {[%emt 0:01:20]} Kc8 {[%emt 0:01:11]} 46. Qg8+ {[%emt 0:01:26]} Nf8 {[%emt 0:05:02]} 47. Qd5 {[%emt 0:06:54]} Nd7 {[%emt 0:01:11]} 48. Ba5 {[%emt 0:00:24]} Qf6 {[%emt 0:04:14]} 49. Bc3 {[%emt 0:06:49] normal} Kc7 {[%emt 0:01:55] normal} 1/2-1/2

[Event "DVM U20w 2019"]
[Site "Braunschweig"]
[Date "2019.12.28"]
[Round "4"]
[White "Schnabel, Luise"]
[Black "Bashylina, Luisa"]
[Result "1/2-1/2"]
[ECO "B24"]
[WhiteElo "1836"]
[BlackElo "1935"]
[Annotator "NA"]
[PlyCount "117"]
[EventDate "2019.12.27"]
[EventType "team-tourn"]
[EventRounds "7"]
[EventCountry "GER"]
[SourceTitle "playchess.com"]
[Source "ChessBase"]
[SourceQuality "1"]
[WhiteTeam "TuRa Harksheide Norderstedt"]
[BlackTeam "SG Solingen"]
[TimeControl "40/5400+30:1800+30"]

1. e4 c5 2. Nc3 Nc6 3. g3 e6 4. Bg2 g6 5. d3 Bg7 6. f4 d6 7. Nf3 Nge7 8. O-O O-O 9. Be3 Nd4 10. e5 Nef5 11. Bf2 Nxf3+ 12. Qxf3 Nd4 13. Qd1 dxe5 14. fxe5 Bd7 15. Ne4 Ba4 16. b3 Bc6 17. c3 Nb5 18. Bxc5 Bxe4 19. Bxe4 Bxe5 20. Qf3 Bxc3 21. Bxf8 Qb6+ 22. Kg2 Rxf8 23. Rac1 f5 24. Qf4 Qa5 25. Rc2 Nd4 26. Rcf2 Be1 27. Bxb7 Bxf2 28. Rxf2 e5 29. Qc1 Qb5 30. Qc4+ Qxc4 31. bxc4 Rb8 32. Bd5+ Kg7 33. Rd2 Kf6 34. a4 Rb4 35. a5 Ra4 36. Rb2 Rxa5 37. Rb7 h5 38. h4 Ne6 39. Rd7 Ra2+ 40. Kf1 Ra6 41. c5 e4 42. c6 Ke5 43. d4+ Nxd4 44. c7 Ra1+ 45. Kf2 Rc1 46. Bb7 Rc2+ 47. Ke1 Rc1+ 48. Kd2 Rc2+ 49. Kd1 e3 50. Rd5+ Kf6 51. Rxd4 Rxc7 52. Bf3 Re7 53. Ke2 a5 54. Rd6+ Kg7 55. Rd5 Ra7 56. Kxe3 a4 57. Rd1 a3 58. Ra1 Kf6 {normal} 59. Bd5 1/2-1/2

[Event "DVM U20w 2019"]
[Site "Braunschweig"]
[Date "2019.12.28"]
[Round "4"]
[White "Möller, Hannah"]
[Black "Sokolowski, Judith"]
[Result "1-0"]
[ECO "E07"]
[WhiteElo "1832"]
[BlackElo "1722"]
[Annotator "NA"]
[PlyCount "53"]
[EventDate "2019.12.27"]
[EventType "team-tourn"]
[EventRounds "7"]
[EventCountry "GER"]
[SourceTitle "playchess.com"]
[Source "ChessBase"]
[SourceQuality "1"]
[WhiteTeam "SV Lingen"]
[BlackTeam "Düsseldorfer SK"]
[TimeControl "40/5400+30:1800+30"]

1. Nf3 {[%emt 0:00:00]} d5 {[%emt 0:00:00]} 2. g3 {[%emt 0:00:00]} Nf6 {[%emt 0:00:00]} 3. Bg2 {[%emt 0:00:00]} e6 {[%emt 0:00:15]} 4. O-O {[%emt 0:00:00]} Be7 {[%emt 0:00:35]} 5. d4 {[%emt 0:00:03]} O-O {[%emt 0:00:49]} 6. c4 {[%emt 0:00:04]} Nbd7 {[%emt 0:00:59]} 7. Nc3 {[%emt 0:05:33]} c6 {[%emt 0:02:28]} 8. cxd5 {[%emt 0:01:23]} exd5 {[%emt 0:01:49]} 9. a3 {[%emt 0:00:22]} Re8 {[%emt 0:03:39]} 10. b4 {[%emt 0:00:41]} a6 {[%emt 0:05:25]} 11. Bb2 {[%emt 0:05:30]} b5 {[%emt 0:07:35]} 12. Ne5 {[%emt 0:01:09]} Bb7 {[%emt 0:12:30]} 13. e4 {[%emt 0:02:36]} dxe4 {[%emt 0:05:49]} 14. Nxe4 {[%emt 0:00:08]} Nd5 {[%emt 0:05:34]} 15. Nc5 {[%emt 0:02:41]} Bxc5 {[%emt 0:04:13]} 16. bxc5 {[%emt 0:04:09]} Nf8 {[%emt 0:03:12]} 17. Qb3 {[%emt 0:03:48]} f6 {[%emt 0:05:19]} 18. Nd3 {[%emt 0:00:11]} Ne6 {[%emt 0:06:54]} 19. Nb4 {[%emt 0:04:53]} Nxb4 {[%emt 0:00:43]} 20. axb4 {[%emt 0:00:08]} Kh8 {[%emt 0:00:54]} 21. Rfe1 {[%emt 0:02:49]} Ng5 {[%emt 0:06:32]} 22. h4 {[%emt 0:01:33]} Qd7 {[%emt 0:05:14]} 23. hxg5 {[%emt 0:00:53]} fxg5 {[%emt 0:00:09]} 24. Re3 {[%emt 0:01:21] normal} Rxe3 {[%emt 0:02:19]} 25. Qxe3 {[%emt 0:00:21]} h6 {[%emt 0:00:46] normal} 26. Re1 {[%emt 0:00:55]} a5 {[%emt 0:00:33]} 27. bxa5 {[%emt 0:00:09] normal} 1-0

[Event "DVM U20w 2019"]
[Site "Braunschweig"]
[Date "2019.12.28"]
[Round "4"]
[White "Fock, Amina"]
[Black "Peglau, Sarah"]
[Result "1-0"]
[ECO "B15"]
[WhiteElo "1807"]
[BlackElo "1760"]
[Annotator "NA"]
[PlyCount "125"]
[EventDate "2019.12.27"]
[EventType "team-tourn"]
[EventRounds "7"]
[EventCountry "GER"]
[SourceTitle "playchess.com"]
[Source "ChessBase"]
[SourceQuality "1"]
[WhiteTeam "SK Nordhorn-Blanke"]
[BlackTeam "Schachzentrum Seeblick"]
[TimeControl "40/5400+30:1800+30"]

1. e4 {[%emt 0:00:00]} c6 {[%emt 0:00:00]} 2. d4 {[%emt 0:00:00]} d5 {[%emt 0:00:00]} 3. Nd2 {[%emt 0:00:00]} dxe4 {[%emt 0:00:00]} 4. Nxe4 {[%emt 0:00:00]} Nf6 {[%emt 0:00:07]} 5. Nxf6+ {[%emt 0:00:11]} exf6 {[%emt 0:00:10]} 6. c3 {[%emt 0:00:20]} Bd6 {[%emt 0:00:45]} 7. Bd3 {[%emt 0:00:08]} Be6 {[%emt 0:01:05]} 8. Qc2 {[%emt 0:00:53]} Nd7 {[%emt 0:01:08]} 9. Ne2 {[%emt 0:01:33]} Qc7 {[%emt 0:02:41]} 10. h4 {[%emt 0:01:56]} O-O-O {[%emt 0:08:38]} 11. Bd2 {[%emt 0:09:24]} Rhe8 {[%emt 0:03:49]} 12. O-O-O {[%emt 0:02:58]} c5 {[%emt 0:03:45]} 13. c4 {[%emt 0:04:38]} cxd4 {[%emt 0:03:16]} 14. Nxd4 {[%emt 0:00:21]} Ne5 {[%emt 0:05:32]} 15. Nxe6 {[%emt 0:11:31]} Nxd3+ {[%emt 0:00:53]} 16. Qxd3 {[%emt 0:00:15]} Rxe6 {[%emt 0:01:22]} 17. Kb1 {[%emt 0:06:40]} Bb4 {[%emt 0:04:19]} 18. Qc2 {[%emt 0:00:36]} Bxd2 {[%emt 0:07:46]} 19. Rxd2 {[%emt 0:00:07]} Rde8 {[%emt 0:06:49]} 20. Qxh7 {[%emt 0:05:34]} Qf4 {[%emt 0:08:14]} 21. Qd3 {[%emt 0:02:02]} Re1+ {[%emt 0:13:34]} 22. Rxe1 {[%emt 0:01:05]} Rxe1+ {[%emt 0:00:16]} 23. Kc2 {[%emt 0:00:24]} Qe4 {[%emt 0:01:09]} 24. g3 {[%emt 0:01:53]} Qxd3+ {[%emt 0:08:42]} 25. Kxd3 {[%emt 0:01:34]} Kd7 {[%emt 0:01:36]} 26. Kc3+ {[%emt 0:05:09]} Kc6 {[%emt 0:00:49]} 27. b4 {[%emt 0:00:34]} f5 {[%emt 0:02:47]} 28. Rd5 {[%emt 0:06:07]} g6 {[%emt 0:02:51]} 29. b5+ {[%emt 0:01:38]} Kc7 {[%emt 0:00:13]} 30. h5 {[%emt 0:01:16]} Re2 {[%emt 0:05:58]} 31. hxg6 {[%emt 0:00:54]} fxg6 {[%emt 0:00:02]} 32. Rd2 {[%emt 0:00:24]} Re4 {[%emt 0:02:42]} 33. a4 {[%emt 0:01:29]} Re5 {[%emt 0:02:54]} 34. Kd4 {[%emt 0:05:21]} Kd6 {[%emt 0:02:24]} 35. f3 {[%emt 0:01:49]} Re1 {[%emt 0:00:30]} 36. c5+ {[%emt 0:01:39]} Kc7 {[%emt 0:00:17]} 37. Rh2 {[%emt 0:04:01]} Ra1 {[%emt 0:00:45]} 38. Rh7+ {[%emt 0:00:07]} Kc8 {[%emt 0:00:03]} 39. b6 {[%emt 0:01:21]} axb6 {[%emt 0:00:32]} 40. cxb6 {[%emt 0:00:11]} Rxa4+ {[%emt 0:00:03]} 41. Kc5 {[%emt 0:32:30]} Ra3 {[%emt 0:30:50]} 42. Rc7+ {[%emt 0:03:48]} Kb8 {[%emt 0:00:38]} 43. Rg7 {[%emt 0:00:55]} Kc8 {[%emt 0:00:00]} 44. Rxg6 {[%emt 0:00:00]} Rxf3 {[%emt 0:00:00]} 45. Kd6 {[%emt 0:00:00]} Rd3+ {[%emt 0:00:00]} 46. Ke6 {[%emt 0:00:00]} Re3+ {[%emt 0:00:00]} 47. Kxf5 {[%emt 0:00:00]} Kd7 {[%emt 0:00:00]} 48. g4 {[%emt 0:00:00]} Rf3+ {[%emt 0:00:00]} 49. Kg5 {[%emt 0:00:00]} Rf1 {[%emt 0:00:00]} 50. Rf6 {[%emt 0:00:00]} Rh1 {[%emt 0:00:00]} 51. Kg6 {[%emt 0:00:00]} Re1 {[%emt 0:00:00]} 52. g5 {[%emt 0:00:00]} Re5 {[%emt 0:00:00]} 53. Kh6 {[%emt 0:00:00]} Ke8 {[%emt 0:00:00]} 54. g6 {[%emt 0:00:00]} Re1 {[%emt 0:00:00]} 55. Kg7 {[%emt 0:00:00]} Rh1 {[%emt 0:00:00]} 56. Rf8+ {[%emt 0:00:00]} Kd7 {[%emt 0:00:00]} 57. Kg8 {[%emt 0:00:00]} Rg1 {[%emt 0:00:00]} 58. g7 {[%emt 0:00:00]} Rh1 {[%emt 0:00:00]} 59. Rf7+ {[%emt 0:00:00]} Kc6 {[%emt 0:00:00]} 60. Rf6+ {[%emt 0:00:00]} Kd7 {[%emt 0:00:00]} 61. Kf7 {[%emt 0:00:00]} Rg1 {[%emt 0:00:00]} 62. g8=Q {[%emt 0:00:00]} Rxg8 {[%emt 0:00:00]} 63. Kxg8 {[%emt 0:00:00] normal} 1-0

[Event "DVM U20w 2019"]
[Site "Braunschweig"]
[Date "2019.12.28"]
[Round "4"]
[White "Berelowitsch, Dana"]
[Black "Sherif, Amina"]
[Result "0-1"]
[ECO "B43"]
[WhiteElo "1792"]
[BlackElo "1945"]
[Annotator "NA"]
[PlyCount "72"]
[EventDate "2019.12.27"]
[EventType "team-tourn"]
[EventRounds "7"]
[EventCountry "GER"]
[SourceTitle "playchess.com"]
[Source "ChessBase"]
[SourceQuality "1"]
[WhiteTeam "SG Solingen"]
[BlackTeam "TuRa Harksheide Norderstedt"]
[TimeControl "40/5400+30:1800+30"]

1. e4 {[%emt 0:00:00]} c5 {[%emt 0:00:00]} 2. Nf3 {[%emt 0:00:00]} e6 {[%emt 0:00:00]} 3. d4 {[%emt 0:00:00]} cxd4 {[%emt 0:00:00]} 4. Nxd4 {[%emt 0:00:00]} a6 {[%emt 0:01:51]} 5. Nc3 {[%emt 0:00:07]} Qc7 {[%emt 0:00:14]} 6. Be3 {[%emt 0:03:17]} Nf6 {[%emt 0:00:33]} 7. f4 {[%emt 0:06:42]} Bb4 {[%emt 0:02:29]} 8. Bd3 {[%emt 0:11:56]} Bxc3+ {[%emt 0:00:51]} 9. bxc3 {[%emt 0:00:12]} Qxc3+ {[%emt 0:00:04]} 10. Kf2 {[%emt 0:00:25]} d6 {[%emt 0:04:59]} 11. Re1 {[%emt 0:06:28]} Nbd7 {[%emt 0:01:12]} 12. Kg1 {[%emt 0:01:45]} O-O {[%emt 0:01:53]} 13. Qf3 {[%emt 0:04:42]} Nc5 {[%emt 0:19:22]} 14. Rad1 {[%emt 0:09:48]} Bd7 {[%emt 0:13:06]} 15. e5 {[%emt 0:03:09]} Nd5 {[%emt 0:08:14]} 16. exd6 {[%emt 0:08:13]} Nxd3 {[%emt 0:00:59]} 17. cxd3 {[%emt 0:00:54]} Rac8 {[%emt 0:07:15]} 18. Bf2 {[%emt 0:04:30]} Qa3 {[%emt 0:04:40]} 19. f5 {[%emt 0:06:28]} Qxd6 {[%emt 0:02:16]} 20. Qh3 {[%emt 0:12:00]} exf5 {[%emt 0:04:07]} 21. Nxf5 {[%emt 0:00:31]} Bxf5 {[%emt 0:00:50]} 22. Qxf5 {[%emt 0:00:17]} Nc3 {[%emt 0:04:56]} 23. Rd2 {[%emt 0:01:58]} Rce8 {[%emt 0:02:52]} 24. Rf1 {[%emt 0:04:31]} Ne4 {[%emt 0:01:49]} 25. Re2 {[%emt 0:05:37]} Nxf2 {[%emt 0:00:17]} 26. Rexf2 {[%emt 0:00:22]} Re3 {[%emt 0:01:29]} 27. Rd1 {[%emt 0:03:19]} g6 {[%emt 0:02:33]} 28. Qg5 {[%emt 0:01:52]} Rfe8 {[%emt 0:02:11]} 29. Rdf1 {[%emt 0:00:55]} Re1 {[%emt 0:04:11]} 30. Rxf7 {[%emt 0:03:07]} Qd4+ {[%emt 0:00:17]} 31. Kh1 {[%emt 0:01:23]} Qa1 {[%emt 0:00:43]} 32. Qd5 {[%emt 0:00:32]} Kh8 {[%emt 0:00:24]} 33. Qf3 {[%emt 0:00:57]} Rxf1+ {[%emt 0:00:06]} 34. Qxf1 {[%emt 0:00:01]} Re1 {[%emt 0:00:09]} 35. Rf8+ {[%emt 0:00:42]} Kg7 {[%emt 0:00:08]} 36. Rf7+ {[%emt 0:00:35]} Kh6 {[%emt 0:00:05] normal} 0-1

[Event "DVM U20w 2019"]
[Site "Braunschweig"]
[Date "2019.12.28"]
[Round "4"]
[White "Ziegenfuss, Larissa"]
[Black "Rempe, Janne"]
[Result "1-0"]
[ECO "B07"]
[WhiteElo "1755"]
[BlackElo "1559"]
[Annotator "NA"]
[PlyCount "63"]
[EventDate "2019.12.27"]
[EventType "team-tourn"]
[EventRounds "7"]
[EventCountry "GER"]
[SourceTitle "playchess.com"]
[Source "ChessBase"]
[SourceQuality "1"]
[WhiteTeam "SG Blau-Weiß Stadtilm"]
[BlackTeam "SK Doppelbauer Kiel"]
[TimeControl "40/5400+30:1800+30"]

1. e4 {[%emt 0:00:00]} d6 {[%emt 0:00:00]} 2. d4 {[%emt 0:00:00]} Nf6 {[%emt 0:00:00]} 3. Nc3 {[%emt 0:00:00]} Nbd7 {[%emt 0:00:02]} 4. Nf3 {[%emt 0:00:00]} e5 {[%emt 0:00:28]} 5. Bc4 {[%emt 0:00:02]} Be7 {[%emt 0:01:03]} 6. O-O {[%emt 0:00:14]} O-O {[%emt 0:00:13]} 7. a4 {[%emt 0:00:11]} a5 {[%emt 0:00:18]} 8. b3 {[%emt 0:00:44]} c6 {[%emt 0:00:18]} 9. dxe5 {[%emt 0:06:33]} dxe5 {[%emt 0:00:27]} 10. Bb2 {[%emt 0:01:22]} Qc7 {[%emt 0:01:42]} 11. Qe2 {[%emt 0:02:42]} Nc5 {[%emt 0:01:52]} 12. Nd2 {[%emt 0:02:18]} Ne6 {[%emt 0:03:49]} 13. Bxe6 {[%emt 0:06:12]} Bxe6 {[%emt 0:01:29]} 14. Nc4 {[%emt 0:01:19]} Ng4 {[%emt 0:07:37]} 15. h3 {[%emt 0:03:45]} Nf6 {[%emt 0:00:50]} 16. Rad1 {[%emt 0:04:30]} Rad8 {[%emt 0:04:09]} 17. Ne3 {[%emt 0:03:47]} Qc8 {[%emt 0:01:16]} 18. Kh2 {[%emt 0:01:39]} h6 {[%emt 0:01:47]} 19. g4 {[%emt 0:06:02]} h5 {[%emt 0:02:58]} 20. Nf5 {[%emt 0:04:56]} Bc5 {[%emt 0:02:23]} 21. f3 {[%emt 0:03:15]} hxg4 {[%emt 0:03:50]} 22. hxg4 {[%emt 0:03:05]} g6 {[%emt 0:00:28]} 23. Qg2 {[%emt 0:08:14]} Bxf5 {[%emt 0:04:13]} 24. gxf5 {[%emt 0:02:32]} Kg7 {[%emt 0:00:41]} 25. Qg3 {[%emt 0:05:54]} Rh8+ {[%emt 0:04:51]} 26. Kg2 {[%emt 0:00:13]} Rdg8 {[%emt 0:03:19]} 27. Qxe5 {[%emt 0:06:16]} b6 {[%emt 0:00:11]} 28. Ne2 {[%emt 0:03:10]} Kf8 {[%emt 0:02:00]} 29. Qxf6 {[%emt 0:03:38]} gxf5+ {[%emt 0:01:23]} 30. Ng3 {[%emt 0:00:13] normal} Be7 {normal} 31. Qxf5 {[%emt 0:02:32] normal} Qxf5 {[%emt 0:02:50]} 32. exf5 {[%emt 0:00:05] normal} 1-0

[Event "DVM U20w 2019"]
[Site "Braunschweig"]
[Date "2019.12.28"]
[Round "4"]
[White "Peglau, Charis"]
[Black "Meijerink, Inken"]
[Result "1/2-1/2"]
[ECO "D02"]
[WhiteElo "1728"]
[BlackElo "1743"]
[Annotator "NA"]
[PlyCount "84"]
[EventDate "2019.12.27"]
[EventType "team-tourn"]
[EventRounds "7"]
[EventCountry "GER"]
[SourceTitle "playchess.com"]
[Source "ChessBase"]
[SourceQuality "1"]
[WhiteTeam "Schachzentrum Seeblick"]
[BlackTeam "SK Nordhorn-Blanke"]
[TimeControl "40/5400+30:1800+30"]

1. Nf3 d5 2. d4 Nf6 3. Bf4 e6 4. e3 Be7 5. c4 b6 6. Nc3 O-O 7. Rc1 Bb7 8. cxd5 exd5 9. a3 c5 10. dxc5 bxc5 11. Be2 Qb6 12. Qc2 Nbd7 13. O-O Rac8 14. Rfd1 h6 15. Ne5 Qe6 16. Nxd7 Nxd7 17. Bf3 Nb6 18. Na4 Rfd8 19. Qb3 Ba8 20. Nc3 Rd7 21. h3 Bd6 22. Bxd6 Rxd6 23. Bg4 f5 24. Bf3 Nc4 25. Qc2 Ne5 26. Be2 Rd7 27. Nb5 Qg6 28. Nd4 Rf7 29. Bd3 Nxd3 30. Qxd3 Rcc7 31. Nf3 d4 32. exd4 cxd4 33. Rxc7 Rxc7 34. Qb3+ Kh7 35. Rxd4 Be4 36. Qe3 Qb6 37. Rb4 Qg6 38. Nh4 Qd6 39. Rd4 Qf6 40. Nf3 Qb6 41. Rb4 Qd6 42. Rd4 Qb6 {normal} 1/2-1/2